fUST/lending_fUST_20251011
["ID","MTS","AMOUNT","RATE_DAILY","PERIOD"]
[390891046,1760196647871,-151.0,0.00024931,2]
[390891047,1760196647881,-151.0,0.00024931,2]
[390891048,1760196647890,-500.0,0.00024931,2]
[390891049,1760196647899,-151.0,0.00024931,2]
[390891050,1760196647909,-151.0,0.00024931,2]
[390891051,1760196647917,-151.0,0.00024931,2]
[390891052,1760196647927,-282.44633068,0.00024931,2]
[390891053,1760196647936,-500.0,0.00024931,2]
[390891054,1760196647946,-151.0,0.00024931,2]
[390891055,1760196647955,-500.0,0.00024931,9]
[390891056,1760196647964,-500.0,0.00024931,5]
[390891057,1760196647973,-500.0,0.00024931,5]
[390891058,1760196647983,-728.0,0.00024962,2]
[390891059,1760196647993,-500.0,0.00024973,2]
[390891060,1760196648002,-150.0,0.00024973,2]
[390891061,1760196648011,-503.59739427,0.00024973,2]
[390891062,1760196648021,-500.0,0.00024973,2]
[390891063,1760196648030,-500.0,0.00024973,2]
[390891064,1760196648039,-291.45974772,0.00024973,2]
[390891065,1760196648048,-500.0,0.00024973,2]
[390891066,1760196648057,-500.0,0.00024973,2]
[390891067,1760196648067,-500.0,0.00024973,2]
[390891068,1760196648076,-245.15009123,0.00024973,2]
[390891069,1760196648086,-500.0,0.00024973,2]
[390891070,1760196648095,-500.0,0.00024973,2]
[390891071,1760196648104,-500.0,0.00024973,2]
[390891072,1760196648113,-500.0,0.00024973,2]
[390891073,1760196648122,-500.1912246,0.00024973,2]
[390891074,1760196648131,-599.90783163,0.00024973,2]
[390891075,1760196648140,-500.0,0.00024973,2]
[390891076,1760196648150,-161.52818085,0.00024973,2]
[390891077,1760196648159,-151.0,0.00024986,2]
[390891078,1760196648168,-151.0,0.00024986,2]
[390891079,1760196648177,-151.0,0.00024986,2]
[390891080,1760196648187,-500.0,0.00024986,2]
[390891081,1760196648198,-151.0,0.00024986,2]
[390891082,1760196648207,-151.0,0.00024986,2]
[390891083,1760196648218,-151.0,0.00024986,2]
[390891084,1760196648228,-287.67860669,0.00024986,2]
[390891085,1760196648239,-232.23281477,0.00024986,2]
[390891086,1760196648249,-100000.0,0.0002499,2]
[390891087,1760196648260,-728.0,0.0002499,2]
[390891088,1760196648270,-12035.55156866,0.00025,2]
[390891089,1760196648280,-246152.40880016,0.00025,2]
[390891090,1760196648292,-728.0,0.00025016,2]
[390891091,1760196648301,-265.92373945,0.00025034,2]
[390891092,1760196648311,-151.0,0.0002504,2]
[390891093,1760196648319,-198.0,0.0002504,2]
[390891094,1760196648329,-151.0,0.0002504,2]
[390891095,1760196648338,-500.0,0.0002504,2]
[390891096,1760196648347,-151.0,0.0002504,2]
[390891097,1760196648357,-157.17235922,0.0002504,2]
[390891098,1760196648367,-245.0,0.0002504,2]
[390891099,1760196648376,-151.0,0.00025095,2]
[390891100,1760196648385,-245.0,0.00025095,2]
[390891101,1760196648395,-289.0,0.00025095,2]
[390891102,1760196648405,-151.0,0.00025095,2]
[390891103,1760196648414,-510.99151939,0.00025121,2]
[390891104,1760196648424,-1000.0,0.00025121,2]
[390891105,1760196648433,-1000.0,0.00025121,2]
[390891106,1760196648443,-1000.0,0.00025121,2]
[390891107,1760196648451,-1000.59476898,0.00025121,2]
[390891108,1760196648461,-1000.0,0.00025121,2]
[390891109,1760196648470,-1000.0,0.00025121,2]
[390891110,1760196648479,-1084.16873017,0.00025121,2]
[390891111,1760196648488,-1000.0,0.00025121,2]
[390891112,1760196648498,-344.94064717,0.00025121,2]
[390891113,1760196648508,-1000.0,0.00025121,2]
[390891114,1760196648518,-1068.67253914,0.00025121,2]
[390891115,1760196648528,-1000.0,0.00025121,2]
[390891116,1760196648537,-775.08535987,0.00025121,2]
[390891117,1760196648546,-1000.0,0.00025121,2]
[390891118,1760196648556,-605.72077124,0.00025121,2]
[390891119,1760196648566,-1000.0,0.00025121,2]
[390891120,1760196648575,-1000.0,0.00025121,2]
[390891121,1760196648585,-1000.0,0.00025121,2]
[390891122,1760196648594,-168.0,0.00025142,2]
[390891123,1760196648604,-245.0,0.0002515,2]
[390891124,1760196648613,-500.0,0.00025205,9]
[390891125,1760196648623,-728.0,0.00025206,2]
[390891126,1760196648632,-1001.50198284,0.00025221,2]
[390891127,1760196648641,-500.0,0.00025221,2]
[390891128,1760196648651,-570.81427335,0.00025221,2]
[390891129,1760196648661,-500.0,0.00025221,2]
[390891130,1760196648670,-1000.0,0.00025221,2]
[390891131,1760196648680,-1000.0,0.00025221,2]
[390891132,1760196648690,-1000.0,0.00025221,2]
[390891133,1760196648699,-1000.0,0.00025221,2]
[390891134,1760196648708,-500.0,0.00025221,2]
[390891135,1760196648718,-1000.0,0.00025221,2]
[390891136,1760196648726,-500.0,0.00025221,2]
[390891137,1760196648736,-1000.0,0.00025221,2]
[390891138,1760196648745,-1000.0,0.00025221,2]
[390891139,1760196648755,-1000.0,0.00025221,2]
[390891140,1760196648764,-500.0,0.00025221,2]
[390891141,1760196648772,-1000.0,0.00025221,2]
[390891142,1760196648781,-1000.0,0.00025221,2]
[390891143,1760196648790,-1000.0,0.00025221,2]
[390891144,1760196648799,-1000.0,0.00025221,2]
[390891145,1760196648808,-168.0,0.00025234,2]
[390891146,1760196648920,-160.0,0.0002529,2]
[390891147,1760196648929,-728.0,0.00025334,2]
[390891148,1760196648938,-200.0,0.00025357,15]
[390891149,1760196648948,-300.0,0.00025366,20]
[390891150,1760196648957,-300.0,0.00025366,20]
[390891151,1760196648966,-300.0,0.00025366,20]
[390891152,1760196648976,-300.0,0.00025366,20]
[390891153,1760196648985,-300.0,0.00025366,20]
[390891154,1760196648994,-300.0,0.00025366,20]
[390891155,1760196649004,-300.0,0.00025366,20]
[390891156,1760196649013,-300.0,0.00025366,20]
[390891157,1760196649022,-300.0,0.00025366,20]
[390891158,1760196649031,-300.0,0.00025366,20]
[390891159,1760196649040,-300.0,0.00025366,20]
[390891160,1760196649050,-300.0,0.00025366,20]
[390891161,1760196649061,-300.0,0.00025366,20]
[390891162,1760196649071,-300.0,0.00025366,20]
[390891163,1760196649082,-300.0,0.00025366,20]
[390891164,1760196649092,-600.0,0.00025366,20]
[390891165,1760196649101,-154.809388,0.00025374,9]
[390891166,1760196649110,-19292.2273969,0.00025418,2]
[390891167,1760196649120,-170.20489478,0.00025421,2]
[390891168,1760196649130,-500.0,0.00025421,2]
[390891169,1760196649140,-500.0,0.00025421,2]
[390891170,1760196649153,-1000.0,0.00025421,2]
[390891171,1760196649162,-1000.0,0.00025421,2]
[390891172,1760196649172,-500.0,0.00025421,2]
[390891173,1760196649181,-728.0,0.00025439,2]
[390891174,1760196649190,-500.0,0.00025479,9]
[390891175,1760196649200,-300.0,0.00025521,2]
[390891176,1760196649209,-1000.0,0.00025521,2]
[390891177,1760196649219,-502.93689473,0.00025521,2]
[390891178,1760196649228,-866.79694638,0.00025521,2]
[390891179,1760196649238,-669.1166714,0.00025521,2]
[390891180,1760196649247,-1000.0,0.00025521,2]
[390891181,1760196649257,-188.03136191,0.00025521,2]
[390891182,1760196649268,-1000.0,0.00025521,2]
[390891183,1760196649280,-1003.64926793,0.00025521,2]
[390891184,1760196649295,-500.0,0.00025521,2]
[390891185,1760196649305,-500.0,0.00025521,2]
[390891186,1760196649317,-300.60944459,0.00025634,2]
[390891187,1760196649329,-500.0,0.00025668,2]
[390891188,1760196649339,-503.39326423,0.00025668,2]
[390891189,1760196649348,-748.75355055,0.00025668,2]
[390891190,1760196649359,-1034.69636138,0.00025668,2]
[390891191,1760196649459,-465.30363862,0.00025668,2]
[390891192,1760196649469,-501.60108235,0.00025668,2]
[390891193,1760196649479,-156.56469291,0.00025668,2]
[390891194,1760196649488,-1507.55432842,0.00025668,2]
[390891195,1760196649498,-1500.0,0.00025668,2]
[390891196,1760196649508,-1500.0,0.00025668,2]
[390891197,1760196649517,-1500.0,0.00025668,2]
[390891198,1760196649527,-1000.0,0.00025668,2]
[390891199,1760196649536,-168.0,0.00025697,2]
[390891200,1760196649546,-152.198179,0.00025711,9]
[390891201,1760196649555,-154.809388,0.00025711,9]
[390891202,1760196649564,-500.0,0.00025753,9]
[390891203,1760196649575,-728.0,0.00025756,2]
[390891204,1760196649584,-500.0,0.00025768,2]
[390891205,1760196649594,-502.26458203,0.00025768,2]
[390891206,1760196649603,-1000.0,0.00025768,2]
[390891207,1760196649612,-380.52601766,0.00025768,2]
[390891208,1760196649622,-1000.0,0.00025768,2]
[390891209,1760196649633,-500.9986309,0.00025768,2]
[390891210,1760196649643,-501.33344174,0.00025768,2]
[390891211,1760196649652,-1500.0,0.00025768,2]
[390891212,1760196649661,-1500.0,0.00025768,2]
[390891213,1760196649671,-168.0,0.00025788,2]
[390891214,1760196649680,-728.0,0.00025796,2]
[390891215,1760196649690,-2846.98260989,0.00025824,2]
[390891216,1760196649699,-260.0,0.00025838,2]
[390891217,1760196649708,-150.0,0.00025849,7]
[390891218,1760196649717,-157.20358038,0.00025854,2]
[390891219,1760196649727,-1000.0,0.000259,2]
[390891220,1760196649736,-728.0,0.00025934,2]
[390891221,1760196649745,-168.0,0.00025941,2]
[390891222,1760196649755,-20006.03981059,0.00025966,2]
[390891223,1760196649764,-151.0,0.00025968,7]
[390891224,1760196649773,-214.3615,0.00025968,7]
[390891225,1760196649782,-151.0,0.00025968,7]
[390891226,1760196649791,-214.3615,0.00025968,7]
[390891227,1760196649801,-214.3615,0.00025968,7]
[390891228,1760196649810,-214.3615,0.00025968,7]
[390891229,1760196649819,-1500.0,0.00025968,2]
[390891230,1760196649828,-1500.0,0.00025968,2]
[390891231,1760196649838,-3000.0,0.00026,2]
[390891232,1760196649847,-410.51979657,0.00026,60]
[390891233,1760196649856,-90401.15462587,0.00026,30]
[390891234,1760196649865,-2609.37557469,0.00026,30]
[390891235,1760196649875,-413.65034385,0.00026007,2]
[390891236,1760196649884,-413.65034385,0.00026007,2]
[390891237,1760196649893,-2124.48,0.00026017,3]
[390891238,1760196649903,-1062.24,0.00026017,3]
[390891239,1760196649913,-531.12,0.00026017,3]
[390891240,1760196649922,-2609.37557469,0.00026017,3]
[390891241,1760196649932,-500.0,0.00026027,9]
[390891242,1760196649941,-1442.99,0.00026027,2]
[390891243,1760196649950,-233.39,0.00026033,2]
[390891244,1760196649960,-152.198179,0.00026048,9]
[390891245,1760196649970,-154.809388,0.00026048,9]
[390891246,1760196649979,-450.0,0.00026068,2]
[390891247,1760196649990,-1500.0,0.00026068,2]
[390891248,1760196650001,-1002.45008947,0.00026068,2]
[390891249,1760196650010,-1500.0,0.00026068,2]
[390891250,1760196650022,-160.0,0.00026082,2]
[390891251,1760196650036,-160.0,0.00026082,2]
[390891252,1760196650047,-160.0,0.00026082,2]
[390891253,1760196650057,-2609.37557469,0.00026093,2]
[390891254,1760196650067,-172.65316788,0.000261,2]
[390891255,1760196650076,-160.0,0.000261,2]
[390891256,1760196650085,-185.1539205,0.000261,2]
[390891257,1760196650094,-1481.66018517,0.000261,2]
[390891258,1760196650103,-625.71563512,0.00026102,4]
[390891259,1760196650112,-625.71563512,0.00026102,4]
[390891260,1760196650122,-413.65034385,0.00026164,4]
[390891261,1760196650131,-413.65034385,0.00026164,4]
[390891262,1760196650141,-413.65034385,0.00026164,4]
[390891263,1760196650153,-413.65034385,0.00026164,4]
[390891264,1760196650162,-500.0,0.00026216,2]
[390891265,1760196650172,-335.29514974,0.00026234,2]
[390891266,1760196650181,-168.0,0.00026234,2]
[390891267,1760196650190,-625.71563512,0.00026259,6]
[390891268,1760196650199,-643.44916529,0.00026284,2]
[390891269,1760196650208,-500.0,0.00026301,9]
[390891270,1760196650217,-2000.0,0.00026316,2]
[390891271,1760196650226,-2000.0,0.00026316,2]
[390891272,1760196650235,-413.65034385,0.0002632,6]
[390891273,1760196650245,-413.65034385,0.0002632,6]
[390891274,1760196650255,-168.0,0.0002638,2]
[390891275,1760196650264,-185.1539205,0.000264,2]
[390891276,1760196650277,-1481.66018517,0.000264,2]
[390891277,1760196650286,-625.71563512,0.00026415,8]
[390891278,1760196650295,-625.71563512,0.00026415,8]
[390891279,1760196650304,-625.71563512,0.00026415,8]
[390891280,1760196650313,-625.71563512,0.00026415,8]
[390891281,1760196650324,-168.0,0.0002646,2]
[390891282,1760196650333,-413.65034385,0.00026477,8]
[390891283,1760196650343,-413.65034385,0.00026477,8]
[390891284,1760196650355,-413.65034385,0.00026477,8]
[390891285,1760196650364,-154.809388,0.000265,3]
[390891286,1760196650374,-197.0,0.000265,15]
[390891287,1760196650383,-16097.55253235,0.00026514,2]
[390891288,1760196650392,-2000.0,0.00026516,2]
[390891289,1760196650402,-167.07428397,0.00026516,2]
[390891290,1760196650412,-500.0,0.0002657,9]
[390891291,1760196650421,-625.71563512,0.00026571,10]
[390891292,1760196650430,-625.71563512,0.00026571,10]
[390891293,1760196650440,-625.71563512,0.00026571,10]
[390891294,1760196650449,-625.71563512,0.00026571,10]
[390891295,1760196650458,-175.0,0.00026571,3]
[390891296,1760196650468,-175.0,0.00026571,3]
[390891297,1760196650477,-175.0,0.00026571,3]
[390891298,1760196650487,-175.09993288,0.00026571,3]
[390891299,1760196650496,-157.0,0.00026571,3]
[390891300,1760196650506,-157.0,0.00026571,3]
[390891301,1760196650515,-157.0,0.00026571,3]
[390891302,1760196650524,-157.0,0.00026571,3]
[390891303,1760196650533,-157.0,0.00026571,3]
[390891304,1760196650542,-157.0,0.00026571,3]
[390891305,1760196650551,-160.05791752,0.00026571,3]
[390891306,1760196650561,-329.0,0.00026571,3]
[390891307,1760196650570,-329.0,0.00026571,3]
[390891308,1760196650579,-329.0,0.00026571,3]
[390891309,1760196650590,-329.0,0.00026571,3]
[390891310,1760196650599,-329.0,0.00026571,3]
[390891311,1760196650609,-329.0,0.00026571,3]
[390891312,1760196650618,-329.0,0.00026571,3]
[390891313,1760196650628,-329.0,0.00026571,3]
[390891314,1760196650637,-329.0,0.00026571,3]
[390891315,1760196650648,-329.0,0.00026571,3]
[390891316,1760196650657,-329.0,0.00026571,3]
[390891317,1760196650666,-329.0,0.00026571,3]
[390891318,1760196650675,-329.0,0.00026571,3]
[390891319,1760196650684,-329.0,0.00026571,3]
[390891320,1760196650693,-329.0,0.00026571,3]
[390891321,1760196650703,-329.0,0.00026571,3]
[390891322,1760196650713,-329.0,0.00026571,3]
[390891323,1760196650722,-329.0,0.00026571,3]
[390891324,1760196650732,-329.0,0.00026571,3]
[390891325,1760196650740,-329.0,0.00026571,3]
[390891326,1760196650750,-329.0,0.00026571,3]
[390891327,1760196650759,-329.0,0.00026571,3]
[390891328,1760196650769,-329.0,0.00026571,3]
[390891329,1760196650778,-329.0,0.00026571,3]
[390891330,1760196650787,-329.0,0.00026571,3]
[390891331,1760196650797,-329.0,0.00026571,3]
[390891332,1760196650805,-500.0,0.00026575,9]
[390891333,1760196650815,-185.1539205,0.000266,2]
[390891334,1760196650825,-1481.66018517,0.000266,2]
[390891335,1760196650834,-152.198179,0.000266,3]
[390891336,1760196650844,-154.809388,0.000266,3]
[390891337,1760196650853,-1499.999999,0.000266,3]
[390891338,1760196650862,-420.0,0.0002661,2]
[390891339,1760196650872,-420.0,0.0002661,2]
[390891340,1760196650881,-420.0,0.0002661,2]
[390891341,1760196650890,-264.0,0.0002661,2]
[390891342,1760196650899,-420.0,0.0002661,2]
[390891343,1760196650909,-1680.0,0.00026611,2]
[390891344,1760196650918,-600.0,0.00026616,2]
[390891345,1760196650927,-1500.0,0.00026616,2]
[390891346,1760196650937,-2000.0,0.00026616,2]
[390891347,1760196650947,-413.65034385,0.00026633,10]
[390891348,1760196650956,-413.65034385,0.00026633,10]
[390891349,1760196650965,-413.65034385,0.00026633,10]
[390891350,1760196650975,-1024.123344,0.00026676,2]
[390891351,1760196650984,-152.198179,0.000267,3]
[390891352,1760196650993,-154.809388,0.000267,3]
[390891353,1760196651002,-625.71563512,0.00026727,12]
[390891354,1760196651012,-1680.0,0.0002673,2]
[390891355,1760196651021,-413.65034385,0.00026789,12]
[390891356,1760196651030,-2609.37557469,0.000268,30]
[390891357,1760196651040,-168.14177406,0.0002681,9]
[390891358,1760196651049,-369.98085489,0.00026834,2]
[390891359,1760196651058,-500.0,0.00026849,9]
[390891360,1760196651068,-2846.98260989,0.0002685,2]
[390891361,1760196651077,-2500.0,0.00026864,2]
[390891362,1760196651086,-2500.0,0.00026864,2]
[390891363,1760196651096,-625.71563512,0.00026883,14]
[390891364,1760196651105,-625.71563512,0.00026883,14]
[390891365,1760196651115,-185.1539205,0.000269,2]
[390891366,1760196651125,-1481.66018517,0.000269,2]
[390891367,1760196651134,-157.20358038,0.00026942,16]
[390891368,1760196651144,-1128.18391511,0.00027,2]
[390891369,1760196651154,-625.71563512,0.00027039,16]
[390891370,1760196651162,-625.71563512,0.00027039,16]
[390891371,1760196651172,-2500.0,0.00027064,2]
[390891372,1760196651181,-1481.66018517,0.000271,2]
[390891373,1760196651190,-500.0,0.00027123,9]
[390891374,1760196651199,-2609.37557469,0.00027123,10]
[390891375,1760196651208,-1000.0,0.00027123,10]
[390891376,1760196651219,-1000.0,0.00027123,10]
[390891377,1760196651229,-1000.0,0.00027123,10]
[390891378,1760196651238,-1000.0,0.00027123,10]
[390891379,1760196651247,-1000.0,0.00027123,10]
[390891380,1760196651257,-1000.0,0.00027123,10]
[390891381,1760196651266,-1000.0,0.00027123,10]
[390891382,1760196651277,-1000.0,0.00027123,10]
[390891383,1760196651290,-1000.0,0.00027123,10]
[390891384,1760196651307,-1000.0,0.00027123,10]
[390891385,1760196651317,-1000.0,0.00027123,10]
[390891386,1760196651327,-1000.0,0.00027123,10]
[390891387,1760196651336,-1000.0,0.00027123,10]
[390891388,1760196651346,-1000.0,0.00027123,10]
[390891389,1760196651355,-1000.0,0.00027123,10]
[390891390,1760196651364,-1000.0,0.00027123,10]
[390891391,1760196651373,-1000.0,0.00027123,10]
[390891392,1760196651383,-370.53442593,0.00027123,10]
[390891393,1760196651392,-298.08050243,0.0002713,10]
[390891394,1760196651402,-827.0321429,0.00027164,2]
[390891395,1760196651411,-505.68056906,0.00027164,2]
[390891396,1760196651518,-625.71563512,0.00027195,18]
[390891397,1760196651529,-625.71563512,0.00027195,18]
[390891398,1760196651539,-160.0,0.00027242,3]
[390891399,1760196651549,-625.71563512,0.00027351,20]
[390891400,1760196651559,-625.71563512,0.00027351,20]
[390891401,1760196651568,-200.32173389,0.00027373,2]
[390891402,1760196651577,-500.0,0.00027373,2]
[390891403,1760196651586,-501.07479901,0.00027373,2]
[390891404,1760196651595,-501.34363723,0.00027373,2]
[390891405,1760196651605,-500.54225061,0.00027373,2]
[390891406,1760196651614,-255.80682142,0.00027373,2]
[390891407,1760196651623,-500.0,0.00027373,2]
[390891408,1760196651633,-154.63,0.00027393,7]
[390891409,1760196651642,-500.0,0.00027397,9]
[390891410,1760196651651,-1000.0,0.00027397,30]
[390891411,1760196651660,-1000.0,0.00027397,30]
[390891412,1760196651669,-1000.0,0.00027397,30]
[390891413,1760196651678,-1000.0,0.00027397,30]
[390891414,1760196651687,-1000.0,0.00027397,30]
[390891415,1760196651696,-1135.99673508,0.00027397,30]
[390891416,1760196651705,-1442.99,0.00027397,4]
[390891417,1760196651714,-300.0,0.00027397,30]
[390891418,1760196651724,-300.0,0.00027397,30]
[390891419,1760196651733,-300.0,0.00027397,30]
[390891420,1760196651742,-300.0,0.00027397,30]
[390891421,1760196651752,-300.0,0.00027397,30]
[390891422,1760196651761,-300.0,0.00027397,30]
[390891423,1760196651771,-300.0,0.00027397,30]
[390891424,1760196651780,-300.0,0.00027397,30]
[390891425,1760196651789,-300.0,0.00027397,30]
[390891426,1760196651799,-300.0,0.00027397,30]
[390891427,1760196651808,-300.0,0.00027397,30]
[390891428,1760196651818,-300.0,0.00027397,30]
[390891429,1760196651827,-300.0,0.00027397,30]
[390891430,1760196651836,-300.0,0.00027397,30]
[390891431,1760196651846,-300.0,0.00027397,30]
[390891432,1760196651855,-300.0,0.00027397,30]
[390891433,1760196651865,-300.0,0.00027397,30]
[390891434,1760196651874,-300.0,0.00027397,30]
[390891435,1760196651883,-300.0,0.00027397,30]
[390891436,1760196651892,-300.0,0.00027397,30]
[390891437,1760196651903,-300.0,0.00027397,30]
[390891438,1760196651912,-300.0,0.00027397,30]
[390891439,1760196651922,-300.0,0.00027397,30]
[390891440,1760196651931,-200.461075,0.00027397,30]
[390891441,1760196651940,-500.0,0.00027397,5]
[390891442,1760196651949,-150.0,0.00027397,5]
[390891443,1760196651959,-8357.96,0.000274,2]
[390891444,1760196651968,-4208.83,0.000274,2]
[390891445,1760196651977,-2609.37557469,0.000274,30]
[390891446,1760196651986,-3000.0,0.00027412,5]
[390891447,1760196651996,-3000.0,0.00027412,5]
[390891448,1760196652005,-404.66656003,0.00027434,2]
[390891449,1760196652014,-154.63,0.00027493,15]
[390891450,1760196652023,-154.63,0.00027593,15]
[390891451,1760196652033,-3000.0,0.00027612,2]
[390891452,1760196652042,-500.0,0.00027671,9]
[390891453,1760196652051,-154.63,0.00027693,15]
[390891454,1760196652062,-154.809388,0.00027697,20]
[390891455,1760196652071,-336.51873,0.000277,120]
[390891456,1760196652080,-280.07,0.00027768,2]
[390891457,1760196652089,-154.63,0.00027793,15]
[390891458,1760196652098,-2846.98260989,0.00027875,2]
[390891459,1760196652107,-154.63,0.00027893,15]
[390891460,1760196652116,-720.0,0.00027903,30]
[390891461,1760196652125,-1000.0,0.00027921,5]
[390891462,1760196652135,-1000.0,0.00027921,5]
[390891463,1760196652144,-500.0,0.00027945,9]
[390891464,1760196652154,-1000.0,0.00027945,5]
[390891465,1760196652164,-250.0,0.00027945,5]
[390891466,1760196652174,-1005.15323595,0.0002796,5]
[390891467,1760196652184,-3500.0,0.0002796,5]
[390891468,1760196652193,-154.63,0.00027993,15]
[390891469,1760196652203,-1126.0,0.00028,2]
[390891470,1760196652212,-10320.1734082,0.00028,5]
[390891471,1760196652222,-157.20358038,0.00028031,30]
[390891472,1760196652231,-439.35226518,0.00028034,2]
[390891473,1760196652242,-154.63,0.00028093,15]
[390891474,1760196652251,-152.198179,0.00028096,20]
[390891475,1760196652261,-154.809388,0.00028096,20]
[390891476,1760196652270,-999.9357,0.0002816,2]
[390891477,1760196652283,-154.63,0.00028193,15]
[390891478,1760196652292,-357.47083217,0.00028219,9]
[390891479,1760196652302,-154.63,0.00028293,15]
[390891480,1760196652311,-150.0,0.000283,5]
[390891481,1760196652322,-197.0,0.000283,20]
[390891482,1760196652332,-154.63,0.00028393,15]
[390891483,1760196652341,-336.51873,0.000284,120]
[390891484,1760196652353,-4196.0,0.00028468,2]
[390891485,1760196652363,-500.66067143,0.00028468,5]
[390891486,1760196652372,-498.51325855,0.00028468,5]
[390891487,1760196652381,-802.73273547,0.00028493,5]
[390891488,1760196652390,-350.0,0.00028493,5]
[390891489,1760196652400,-154.63,0.00028493,15]
[390891490,1760196652409,-152.198179,0.00028494,20]
[390891491,1760196652418,-154.809388,0.00028494,20]
[390891492,1760196652428,-60785.21317976,0.000285,7]
[390891493,1760196652437,-4000.0,0.00028508,5]
[390891494,1760196652446,-154.63,0.00028593,15]
[390891495,1760196652455,-981.732,0.00028634,2]
[390891496,1760196652466,-2159.0,0.00028634,2]
[390891497,1760196652475,-630.0,0.00028634,2]
[390891498,1760196652484,-415.126,0.00028634,2]
[390891499,1760196652494,-474.03797032,0.00028634,2]
[390891500,1760196652504,-154.63,0.00028693,15]
[390891501,1760196652514,-981.97391588,0.0002876,2]
[390891502,1760196652523,-1442.99,0.00028767,6]
[390891503,1760196652533,-154.63,0.00028793,15]
[390891504,1760196652542,-154.809388,0.00028798,10]
[390891505,1760196652551,-152.0,0.000288,120]
[390891506,1760196652561,-4208.83,0.000288,2]
[390891507,1760196652571,-320.0,0.00028841,2]
[390891508,1760196652580,-300.0,0.00028841,2]
[390891509,1760196652589,-360.0,0.00028841,2]
[390891510,1760196652598,-250.0,0.00028848,5]
[390891511,1760196652607,-154.63,0.00028893,15]
[390891512,1760196652616,-2846.98260989,0.000289,2]
[390891513,1760196652625,-2201.74723435,0.0002899,2]
[390891514,1760196652634,-154.63,0.00028993,15]
[390891515,1760196652643,-8000.0,0.00029,30]
[390891516,1760196652654,-1698488.23811498,0.00029,120]
[390891517,1760196652663,-33823.99087506,0.00029,60]
[390891518,1760196652672,-2609.37557469,0.00029,120]
[390891519,1760196652681,-2609.37557469,0.00029,7]
[390891520,1760196652691,-194.7823746,0.00029,120]
[390891521,1760196652699,-214.3615,0.00029,30]
[390891522,1760196652708,-169.392341,0.00029,30]
[390891523,1760196652718,-214.3615,0.00029,30]
[390891524,1760196652727,-214.3615,0.00029,30]
[390891525,1760196652736,-214.3615,0.00029,30]
[390891526,1760196652745,-450.0,0.00029041,5]
[390891527,1760196652754,-4500.0,0.00029056,5]
[390891528,1760196652763,-154.63,0.00029093,15]
[390891529,1760196652773,-154.809388,0.00029097,2]
[390891530,1760196652782,-336.51873,0.000291,120]
[390891531,1760196652791,-2351.0,0.00029103,2]
[390891532,1760196652800,-151.0,0.00029105,30]
[390891533,1760196652810,-151.0,0.00029105,30]
[390891534,1760196652819,-151.0,0.00029105,30]
[390891535,1760196652829,-1000.0,0.00029149,5]
[390891536,1760196652838,-154.63,0.00029193,15]
[390891537,1760196652847,-508.72367547,0.00029234,2]
[390891538,1760196652857,-154.63,0.00029293,15]
[390891539,1760196652866,-200.0,0.00029299,120]
[390891540,1760196652875,-160.0,0.00029318,4]
[390891541,1760196652884,-200.0,0.00029391,120]
[390891542,1760196652893,-154.63,0.00029393,15]
[390891543,1760196652902,-350.0,0.00029396,5]
[390891544,1760196652913,-300.0402692,0.0002947,20]
[390891545,1760196652922,-151.0,0.00029493,30]